{"text_format":"1","workbook":"xlsx","n_sheets":3,"sheets":["申込書","カリキュラムコード一覧","Sheet3"],"not_rendered":{"charts":0,"images":0,"macros":1,"external_links":0,"defined_names":1,"comments":0,"pivot_tables":0},"unopened":[],"bounds":{"document_bytes":16777216,"sheet_cells":100000,"rows_first":2000,"rows_last":500,"rows_between":2000,"halvings":0,"cell_chars":16384,"cell_head_chars":4096},"cells_cut":0,"cells_raw":0,"read":"whole","date_system":"1900"}

{"sheet":"申込書","index":0,"n_rows":417,"n_cols":11,"rows_kept":417,"cut":false,"hidden":false,"merged":[[272,1,272,7],[273,1,273,7],[274,1,274,7],[368,1,368,7],[396,1,396,7],[397,1,397,7],[398,1,398,7],[399,1,399,7],[400,1,400,7],[300,1,300,7],[301,1,301,7],[302,1,302,7],[330,1,330,7],[331,1,331,7],[332,1,332,7],[333,1,333,7],[334,1,334,7],[335,1,335,7],[315,1,315,8],[319,1,319,8],[321,1,321,8],[325,1,325,8],[346,1,346,8],[348,1,348,8],[253,1,253,8],[255,1,255,8],[132,1,132,7],[133,1,133,7],[134,1,134,7],[135,1,135,7],[136,1,136,7],[137,1,137,7],[165,1,165,7],[154,1,154,8],[156,1,156,8],[160,1,160,8],[162,1,162,8],[144,1,144,8],[146,1,146,8],[148,1,148,8],[150,1,150,8],[138,1,138,7],[139,1,139,7],[140,1,140,7],[141,1,141,7],[163,1,163,9],[164,1,164,9],[200,1,200,7],[402,1,402,7],[403,1,403,7],[31,4,31,8],[74,1,74,8],[73,0,74,0],[73,9,74,9],[85,1,85,9],[352,1,352,8],[361,1,361,9],[342,1,342,8],[344,1,344,8],[309,1,309,8],[311,1,311,8],[313,1,313,8],[278,1,278,8],[280,1,280,8],[328,1,328,9],[216,1,216,8],[220,1,220,8],[222,1,222,8],[226,1,226,8],[228,1,228,8],[229,1,229,9],[249,1,249,8],[269,1,269,7],[271,1,271,7],[410,1,410,8],[354,1,354,8],[358,1,358,8],[360,1,360,8],[362,1,362,9],[394,1,394,9],[385,1,385,8],[387,1,387,8],[408,1,408,8],[363,1,363,7],[364,1,364,7],[365,1,365,7],[366,1,366,7],[367,1,367,7],[369,1,369,7],[370,1,370,7],[371,1,371,7],[372,1,372,7],[401,1,401,7],[375,1,375,8],[377,1,377,8],[379,1,379,8],[201,1,201,7],[276,1,276,8],[263,1,263,9],[230,1,230,9],[262,1,262,9],[243,1,243,8],[245,1,245,8],[247,1,247,8],[235,1,235,7],[236,1,236,7],[237,1,237,7],[238,1,238,7],[239,1,239,7],[240,1,240,7],[241,1,241,7],[270,1,270,7],[259,1,259,8],[261,1,261,8],[264,1,264,7],[265,1,265,7],[266,1,266,7],[267,1,267,7],[268,1,268,7],[232,1,232,7],[233,1,233,7],[234,1,234,7],[207,1,207,7],[208,1,208,7],[210,1,210,8],[212,1,212,8],[214,1,214,8],[204,1,204,7],[205,1,205,7],[206,1,206,7],[94,1,94,8],[96,1,96,8],[97,1,97,9],[129,1,129,8],[115,1,115,8],[117,1,117,8],[121,1,121,8],[123,1,123,8],[127,1,127,8],[98,1,98,9],[100,1,100,7],[99,1,99,7],[101,1,101,7],[102,1,102,7],[103,1,103,7],[104,1,104,7],[111,1,111,8],[113,1,113,8],[105,1,105,7],[106,1,106,7],[107,1,107,7],[108,1,108,7],[109,1,109,7],[82,1,82,8],[84,1,84,8],[88,1,88,8],[90,1,90,8],[73,1,73,8],[63,1,63,8],[65,1,65,8],[67,1,67,8],[69,1,69,8],[70,1,70,8],[75,1,75,9],[76,1,76,9],[77,1,77,9],[78,1,78,9],[79,1,79,9],[80,1,80,9],[81,1,81,9],[57,1,57,8],[59,1,59,8],[61,1,61,8],[47,1,47,8],[48,1,48,8],[49,1,49,8],[51,1,51,8],[37,1,37,8],[38,1,38,8],[40,1,40,8],[41,1,41,8],[43,1,43,8],[412,1,412,8],[414,1,414,8],[288,1,288,8],[72,1,72,9],[4,1,4,8],[8,1,8,8],[9,1,9,8],[11,1,11,8],[13,1,13,8],[14,1,14,8],[17,1,17,8],[18,1,18,8],[20,1,20,8],[27,1,27,8],[29,1,29,8],[33,1,33,8],[35,1,35,8],[21,1,21,8],[23,1,23,8],[24,1,24,8],[26,1,26,8],[44,1,44,8],[53,4,53,8],[55,1,55,8],[381,1,381,8],[391,1,391,8],[393,1,393,8],[395,1,395,9],[292,1,292,8],[294,1,294,8],[295,1,295,9],[296,1,296,9],[297,1,297,7],[298,1,298,7],[299,1,299,7],[327,1,327,8],[303,1,303,7],[373,1,373,7],[177,1,177,8],[167,1,167,7],[168,1,168,7],[329,1,329,9],[286,1,286,8],[282,1,282,8],[169,1,169,7],[170,1,170,7],[196,1,196,9],[197,1,197,9],[193,1,193,8],[195,1,195,8],[179,1,179,8],[181,1,181,8],[183,1,183,8],[187,1,187,8],[189,1,189,8],[174,1,174,7],[175,1,175,7],[198,1,198,7],[199,1,199,7],[202,1,202,7],[203,1,203,7],[231,1,231,7],[404,1,404,7],[405,1,405,7],[406,1,406,7],[3,1,3,9],[0,0,0,9],[86,8,86,9],[185,8,185,9],[119,8,119,9],[304,1,304,7],[305,1,305,7],[306,1,306,7],[307,1,307,7],[336,1,336,7],[337,1,337,7],[338,1,338,7],[339,1,339,7],[340,1,340,7],[142,1,142,7],[171,1,171,7],[172,1,172,7],[173,1,173,7],[166,1,166,7],[130,1,130,9],[131,1,131,9]]}
["茨城県医師会 日本医師会生涯教育制度講習会 認定申請書"]
[null,null,null,null,null,null,null,null,"申　請　日：　20  　年　　　月　　　　日","⇐入力してください。"]
["Ver.19.1024",null,null,null,null,null,null,null,"変　更　日：　20  　年　　　月　　　　日","⇐変更の際に入力してください。"]
["＊印は必須項目です。 ","申請前（※メール添付前）に記載・入力内容に間違いがないか確認してください。\n審査業務の円滑な運営にご協力をお願いいたします。"]
["開催日時*",null,null,null,null,null,null,null,null,"　　　　　　⇐クリックしてください。"]
[]
[null,"hh","：","mm","～","hh","：","mm","※ｈｈ,mmをプルダウンして選択してください","⇐選択してください。"]
[null,"例:19　 　:　　00　　　　　～　　　　21 　　:　　00"]
["開催日数*","開催日数をプルダウンして下記より選択してください。",null,null,null,null,null,null,null,"⇐選択してください。"]
[null,"複数日：〇日間〇日目",null,null,null,null,null,null,null,"⇐複数日を選択した場合は入力してください。"]
[]
["講習会名*",null,null,null,null,null,null,null,null,"⇐入力してください。"]
[null,"例：感染症対策研修会"]
["主催*","主催者分類をプルダウンして下記より選択してください。",null,null,null,null,null,null,null,"⇐選択してください。"]
[null,null,null,null,null,null,null,null,null,"⇐医師会以外は入力してください"]
[null,"例:〇〇製薬（株式会社、（株）等の入力は不要）、〇〇医院、茨城県〇〇科医会、〇〇研究会"]
[]
["製薬会社以外の共催有無*","共催者の有無をプルダウンして下記より選択してください。",null,null,null,null,null,null,null,"⇐選択してください。"]
[null,null,null,null,null,null,null,null,null,"⇐その他を選択した場合は入力してください。"]
[]
["製薬会社共催有無*","製薬会社共催の有無をプルダウンして下記より選択してください。",null,null,null,null,null,null,null,"⇐選択してください。"]
[null,null,null,null,null,null,null,null,null,"⇐有を選択した場合は入力してください。"]
[null,"例:〇〇製薬（株式会社、（株）等の入力は不要）"]
["講習会等の形式別*","講習会等の形式別をプルダウンして下記より選択してください。",null,null,null,null,null,null,null,"⇐選択してください。"]
[null,null,null,null,null,null,null,null,null,"⇐その他を選択した場合は入力してください。"]
["開催場所"]
["　都道府県*","茨城県",null,null,null,null,null,null,null,"⇐※入力しないでください。"]
["　会場名*",null,null,null,null,null,null,null,null,"⇐入力してください。"]
[null,"例：〇〇会館"]
["　階・室名*",null,null,null,null,null,null,null,null,"⇐入力してください。"]
[null,"例：4階101号室(※英数字は半角で入力してください）"]
["　郵便番号*",null,"-",null,null,null,null,null,null,"⇐入力してください。"]
[null,"例:311-0852(※半角で入力してください）"]
["　住所*",null,null,null,null,null,null,null,null,"⇐入力してください。"]
["  ","例：水戸市笠原町489（※茨城県の入力は不要）"]
["　電話番号*","000-000-0000     ",null,null,null,null,null,null,null,"⇐入力してください。"]
[null,"例:029-241-8446(※半角で入力してください）"]
["対象者*","対象者をプルダウンして下記より選択してください。",null,null,null,null,null,null,null,"⇐選択してください。"]
[null,null,null,null,null,null,null,null,null,"⇐その他を選択した場合は入力してください。"]
[null,"例:医療従事者"]
["参加費・受講料*","参加費・受講料をプルダウンして下記より選択してください。",null,null,null,null,null,null,null,"⇐選択してください。"]
[null,null,null,null,null,null,null,null,null,"⇐有料を選択した場合は入力してください。"]
[null,"例:県医師会員：10000円、非会員：12000円（※カンマは入力しないでください）"]
["事前申込み*","事前申込要・不要をプルダウンして下記より選択してください。",null,null,null,null,null,null,null,"⇐選択してください。"]
[null,null,null,null,null,null,null,null,null,"　　　　　　⇐クリックしてください。"]
[]
["連絡・問合せ先"]
["（申請・研修会に関する問合せ先)","申請者の立場をプルダウンして下記より選択してください。",null,null,null,null,null,null,null,"⇐選択してください。"]
[null," ",null,null,null,null,null,null,null,"⇐その他を選択した場合は入力してください。"]
["　　所属先名*",null,null,null,null,null,null,null,null,"⇐所属先を入力してください。"]
[null,"例:〇〇医院、茨城県〇〇科医会、〇〇研究会、〇〇製薬（株式会社、（株）等の入力は不要です）"]
["　　担当者名*",null,null,null,null,null,null,null,null,"⇐その他を選択した場合は入力してください。"]
["  ","〇〇課　生涯太郎"]
["　　郵便番号*",null,"-",null,null,null,null,null,null,"⇐入力してください。"]
[null,"例:311-0852(※半角で入力してください）"]
["　　住所*",null,null,null,null,null,null,null,null,"⇐入力してください。"]
[null,"例：水戸市笠原町489（※茨城県の入力は不要。上欄で既に入力済。）"]
["　　電話番号*","000-000-0000     ",null,null,null,null,null,null,null,"⇐入力してください。"]
[null,"例:029-241-8446(※半角で入力してください）"]
["　　FAX*","000-000-0000     ",null,null,null,null,null,null,null,"⇐入力してください。"]
[null,"例:029-243-5071(※半角で入力してください）"]
["　　メールアドレス",null,null,null,null,null,null,null,null,"⇐入力してください。"]
[null,"例:gakujutu@ibaraki.med.or.jp"]
["　　ホームページ",null,null,null,null,null,null,null,null,"⇐必要があれば入力してください。"]
["  ","例:http://www.ibaraki.med.or.jp/"]
["COI開示有無*","COI開示有無をプルダウンして下記より選択してください。",null,null,null,null,null,null,null,"⇐選択してください。"]
[]
["備考",{"$f":"IF(B15=\"\",\"\",B15)","v":""},null,null,null,null,null,null,null,"⇐※入力しないでください。"]
[]
["受付管理*","受付管理をプルダウンして下記より選択してください。",null,null,null,null,null,null,null,"⇐選択してください。"]
[null,null,null,null,null,null,null,null,null,"⇐開始＋終了受付  （　　分間）を\n選択した場合は時間を入力してください。"]
[null,"例:10分間"]
["製薬会社入力欄　　","※製薬会社が主催、申請者となっている場合は必ず下記の欄をご確認いただきご入力ください。"]
["開催地郡市医師会への確認\n\n郡市医師会によって生涯教育講座の申請方法が異なりますので必ず開催地の郡市医師会へ事前に確認してください。","確認日：20　　　　年　　　　月　　　　日　（　　　）　",null,null,null,null,null,null,null,"⇐入力してください。"]
[null,"郡市医師会担当者名【　　　　　　　　　　　】に確認しました。"]
["申請認定に関する確認事項　","※製品PRにつながるような開催案内ですと認可いたしかねます。必ず申請前にご確認の上、本申請書と開催案内を　gakujutu@ibaraki.med.or.jp　へ同時に申請してください。"]
[null,"①研修会のタイトル・開催案内文に製品名が入っていない、ロゴマーク等の記載、製品名をイメージさせるような配色・デザインがなされていないことをご確認ください。"]
[null,"②日本医師会生涯教育講座　取得単位数と取得カリキュラムコード申請中と記載してください。"]
[null,"③生涯教育講座認定申請は茨城県医師会の共催、後援等の申請とは別のものです。茨城県医師会が共催、後援と記載しないでください。"]
[null,"④講習会終了後には本会所定の様式にて期限内に速やかに出席者名簿データをgakujutu@ibaraki.med.or.jpへ提出してください。提出の際には出席者名簿の必須項目を必ず入力したうえでご提出ください。申請前に必ず出席者名簿データを確認し、当日の受付名簿に反映させる等の準備を行ってください。"]
[null,"⑤その他、詳細につきましては認定に関するルールをご確認ください。"]
[null,"上記の条件を守ることができない場合は申請はご遠慮ください。\nまた講習会終了後、期限内に出席者名簿の提出がない、または本会の事業方針にそぐわない等の行為が発覚した際には次回以降の申請を所属先単位でご遠慮させていただくことがございますのでご承知おきください。"]
[null,"上記を確認し、承諾したうえで申請書及び開催案内を添付致します。\n講習会終了後には貴会所定様式の記載要件を整えたうえで速やかに期限内に出席者報告を行います。　　　　\n\n【申請者：所属先/氏名　　　　　　　　　　　　　　　　　　　　　　】　　　　　　　　　　　　　　　　　　　",null,null,null,null,null,null,null,"⇐入力してください。"]
[]
["申請演題数*","申請演題数をプルダウンして下記より選択してください。",null,null,null,null,null,null,null,"⇐選択してください。"]
[null,"上記の演題数に併せて下記の演題申請枠にご記入または選択してください。"]
["演題①"]
[null,null,null,{"$f":"B93&C93&D93","v":"hh：mm"},null,null,null,{"$f":"F93&G93&H93","v":"hh：mm"}]
["会場名*",null,null,null,null,null,null,null,null,"⇐入力してください。"]
[null,"例：〇〇会館"]
["階・室名*",null,null,null,null,null,null,null,null,"⇐入力してください。"]
[null,"例：4階101号室"]
["演題開催時間*","hh","：","mm","～","hh","：","mm",{"$f":"IF(ISERROR(H88-D88), \"\", ROUNDUP(H88-D88,5))","v":""},"⇐選択してください。"]
[null,"例:19　 　:　　00　　　　　～　　　　21 　　:　　00"]
["演題学習時間*",{"$f":"IF(I93=\"\",\"\",IF(I93<30/1440,0,IF(I93<60/1440,カリキュラムコード一覧!$C$2,IF(申込書!I93<90/1440,カリキュラムコード一覧!$C$3,IF(申込書!I93<120/1440,カリキュラムコード一覧!$C$4,IF(I93<150/1440,カリキュラムコード一覧!$C$5,IF(I93<180/1440,カリキュラムコード一覧!$C$6,IF(I93<210/1440,カリキュラムコード一覧!$C$7,IF(I93<240/1440,カリキュラムコード一覧!$C$8,IF(I93<270/1440,カリキュラムコード一覧!$C$9,IF(I93<300/1440,カリキュラムコード一覧!$C$10,カリキュラムコード一覧!$C$11)))))))))))","v":""},null,null,null,null,null,null,null,"⇐※入力しないでください。"]
[]
["CC（単位）*","単位数をプルダウンして下記より選択してください。",null,null,null,null,null,null,null,"⇐選択してください。"]
[null,"基本的には、１時間１単位１カリキュラムコードです。\n（ただし、講習会等の構成の自由度を保つために、最小単位は30分0.5単位、１カリキュラムコードといたします。）"]
[null,"※上記に記された単位数とＣＣ数を超えて申請することはできません。",null,null,null,null,null,null,null,null,"　"]
["CC（単位）*","CC",null,null,null,null,null,null,"単位数"]
["CC：１つめ　　　　　　　　","CCをプルダウンして下記より選択してください。",null,null,null,null,null,null,"単位数をプルダウンして下記より選択してください。","⇐選択してください。"]
["CC：２つめ　　　　　　　　","CCをプルダウンして下記より選択してください。",null,null,null,null,null,null,"単位数をプルダウンして下記より選択してください。","⇐選択してください。"]
["CC：３つめ　　　　　　　　","CCをプルダウンして下記より選択してください。",null,null,null,null,null,null,"単位数をプルダウンして下記より選択してください。","⇐選択してください。"]
["CC：４つめ　　　　　　　　","CCをプルダウンして下記より選択してください。",null,null,null,null,null,null,"単位数をプルダウンして下記より選択してください。","⇐選択してください。"]
["CC：５つめ　　　　　　　　","CCをプルダウンして下記より選択してください。",null,null,null,null,null,null,"単位数をプルダウンして下記より選択してください。","⇐選択してください。"]
["CC：６つめ　　　　　　　　","CCをプルダウンして下記より選択してください。",null,null,null,null,null,null,"単位数をプルダウンして下記より選択してください。","⇐選択してください。"]
["CC：７つめ　　　　　　　　","CCをプルダウンして下記より選択してください。",null,null,null,null,null,null,"単位数をプルダウンして下記より選択してください。","⇐選択してください。"]
["CC：８つめ　　　　　　　　","CCをプルダウンして下記より選択してください。",null,null,null,null,null,null,"単位数をプルダウンして下記より選択してください。","⇐選択してください。"]
["CC：９つめ　　　　　　　　","CCをプルダウンして下記より選択してください。",null,null,null,null,null,null,"単位数をプルダウンして下記より選択してください。","⇐選択してください。"]
["CC：１０つめ　　　　　　　　","CCをプルダウンして下記より選択してください。",null,null,null,null,null,null,"単位数をプルダウンして下記より選択してください。","⇐選択してください。"]
[]
["演題名（テーマ）*",null,null,null,null,null,null,null,null,"⇐入力してください。"]
[null,"例:感染症に対する対策について（未定の場合は仮題をご記入ください。「未定」では受付いたしません。）"]
["演題に関する補足説明",null,null,null,null,null,null,null,null,"⇐必要があれば入力してください。"]
[]
["講師所属(肩書き)*",null,null,null,null,null,null,null,null,"⇐入力してください。"]
[null,"例:医師会大学病院長、整形外科教授"]
["講師名*",null,null,null,null,null,null,null,null,"⇐入力してください。"]
[null,"例:生涯太郎　（※先生の入力は不要、姓と名の間は空白を入れず詰めて入力してください。）"]
["演題②"]
[null,null,null,{"$f":"B126&C126&D126","v":"hh：mm"},null,null,null,{"$f":"F126&G126&H126","v":"hh：mm"}]
["会場名*",null,null,null,null,null,null,null,null,"⇐入力してください。"]
[null,"例：〇〇会館"]
["階・室名*",null,null,null,null,null,null,null,null,"⇐入力してください。"]
[null,"例：4階101号室"]
["演題開催時間*","hh","：","mm","～","hh","：","mm",{"$f":"IF(ISERROR(H121-D121), \"\", ROUNDUP(H121-D121,5))","v":""},"⇐選択してください。"]
[null,"例:19　 　:　　00　　　　　～　　　　21 　　:　　00"]
["演題学習時間*",{"$f":"IF(I126=\"\",\"\",IF(I126<30/1440,0,IF(I126<60/1440,カリキュラムコード一覧!$C$2,IF(申込書!I126<90/1440,カリキュラムコード一覧!$C$3,IF(申込書!I126<120/1440,カリキュラムコード一覧!$C$4,IF(I126<150/1440,カリキュラムコード一覧!$C$5,IF(I126<180/1440,カリキュラムコード一覧!$C$6,IF(I126<210/1440,カリキュラムコード一覧!$C$7,IF(I126<240/1440,カリキュラムコード一覧!$C$8,IF(I126<270/1440,カリキュラムコード一覧!$C$9,IF(I126<300/1440,カリキュラムコード一覧!$C$10,カリキュラムコード一覧!$C$11)))))))))))","v":""},null,null,null,null,null,null,null,"⇐※入力しないでください。"]
[]
["演題CC（単位数）*","単位数をプルダウンして下記より選択してください。",null,null,null,null,null,null,null,"⇐選択してください。"]
[null,"基本的には、１時間１単位１カリキュラムコードです。\n（ただし、講習会等の構成の自由度を保つために、最小単位は30分0.5単位、１カリキュラムコードといたします。）"]
[null,"※上記に記された単位数とＣＣ数を超えて申請することはできません。"]
["CC（単位）*","CC",null,null,null,null,null,null,"単位数"]
["CC：１つめ　　　　　　　　","CCをプルダウンして下記より選択してください。",null,null,null,null,null,null,"単位数をプルダウンして下記より選択してください。","⇐選択してください。"]
["CC：２つめ　　　　　　　　","CCをプルダウンして下記より選択してください。",null,null,null,null,null,null,"単位数をプルダウンして下記より選択してください。","⇐選択してください。"]
["CC：３つめ　　　　　　　　","CCをプルダウンして下記より選択してください。",null,null,null,null,null,null,"単位数をプルダウンして下記より選択してください。","⇐選択してください。"]
["CC：４つめ　　　　　　　　","CCをプルダウンして下記より選択してください。",null,null,null,null,null,null,"単位数をプルダウンして下記より選択してください。","⇐選択してください。"]
["CC：５つめ　　　　　　　　","CCをプルダウンして下記より選択してください。",null,null,null,null,null,null,"単位数をプルダウンして下記より選択してください。","⇐選択してください。"]
["CC：６つめ　　　　　　　　","CCをプルダウンして下記より選択してください。",null,null,null,null,null,null,"単位数をプルダウンして下記より選択してください。","⇐選択してください。"]
["CC：７つめ　　　　　　　　","CCをプルダウンして下記より選択してください。",null,null,null,null,null,null,"単位数をプルダウンして下記より選択してください。","⇐選択してください。"]
["CC：８つめ　　　　　　　　","CCをプルダウンして下記より選択してください。",null,null,null,null,null,null,"単位数をプルダウンして下記より選択してください。","⇐選択してください。"]
["CC：９つめ　　　　　　　　","CCをプルダウンして下記より選択してください。",null,null,null,null,null,null,"単位数をプルダウンして下記より選択してください。","⇐選択してください。"]
["CC：１０つめ　　　　　　　　","CCをプルダウンして下記より選択してください。",null,null,null,null,null,null,"単位数をプルダウンして下記より選択してください。","⇐選択してください。"]
[]
["演題名（テーマ）*",null,null,null,null,null,null,null,null,"⇐入力してください。"]
[null,"例:感染症に対する対策について（未定の場合は仮題をご記入ください。「未定」では受付いたしません。）"]
["演題に関する補足説明",null,null,null,null,null,null,null,null,"⇐必要があれば入力してください。"]
[]
["講師所属(肩書き)*",null,null,null,null,null,null,null,null,"⇐入力してください。"]
[null,"例:医師会大学病院長、整形外科教授"]
["講師名*",null,null,null,null,null,null,null,null,"⇐入力してください。"]
[null,"例:生涯太郎　（※先生の入力は不要、姓と名の間は空白を入れず詰めて入力してください。）"]
["演題③"]
[null,null,null,{"$f":"B159&C159&D159","v":"hh：mm"},null,null,null,{"$f":"F159&G159&H159","v":"hh：mm"}]
["会場名*",null,null,null,null,null,null,null,null,"⇐入力してください。"]
[null,"例：〇〇会館"]
["階・室名*",null,null,null,null,null,null,null,null,"⇐入力してください。"]
[null,"例：4階101号室"]
["演題開催時間*","hh","：","mm","～","hh","：","mm",{"$f":"IF(ISERROR(H154-D154), \"\", ROUNDUP(H154-D154,5))","v":""},"⇐選択してください。"]
[null,"例:19　 　:　　00　　　　　～　　　　21 　　:　　00"]
["演題学習時間*",{"$f":"IF(I159=\"\",\"\",IF(I159<30/1440,0,IF(I159<60/1440,カリキュラムコード一覧!$C$2,IF(申込書!I159<90/1440,カリキュラムコード一覧!$C$3,IF(申込書!I159<120/1440,カリキュラムコード一覧!$C$4,IF(I159<150/1440,カリキュラムコード一覧!$C$5,IF(I159<180/1440,カリキュラムコード一覧!$C$6,IF(I159<210/1440,カリキュラムコード一覧!$C$7,IF(I159<240/1440,カリキュラムコード一覧!$C$8,IF(I159<270/1440,カリキュラムコード一覧!$C$9,IF(I159<300/1440,カリキュラムコード一覧!$C$10,カリキュラムコード一覧!$C$11)))))))))))","v":""},null,null,null,null,null,null,null,"⇐※入力しないでください。"]
[]
["CC（単位）*","単位数をプルダウンして下記より選択してください。",null,null,null,null,null,null,null,"⇐選択してください。"]
["  ","基本的には、１時間１単位１カリキュラムコードです。\n（ただし、講習会等の構成の自由度を保つために、最小単位は30分0.5単位、１カリキュラムコードといたします。）"]
[null,"※上記に記された単位数とＣＣ数を超えて申請することはできません。"]
["CC（単位）*","CC",null,null,null,null,null,null,"単位数"]
["CC：１つめ　　　　　　　　","CCをプルダウンして下記より選択してください。",null,null,null,null,null,null,"単位数をプルダウンして下記より選択してください。","⇐選択してください。"]
["CC：２つめ　　　　　　　　","CCをプルダウンして下記より選択してください。",null,null,null,null,null,null,"単位数をプルダウンして下記より選択してください。","⇐選択してください。"]
["CC：３つめ　　　　　　　　","CCをプルダウンして下記より選択してください。",null,null,null,null,null,null,"単位数をプルダウンして下記より選択してください。","⇐選択してください。"]
["CC：４つめ　　　　　　　　","CCをプルダウンして下記より選択してください。",null,null,null,null,null,null,"単位数をプルダウンして下記より選択してください。","⇐選択してください。"]
["CC：５つめ　　　　　　　　","CCをプルダウンして下記より選択してください。",null,null,null,null,null,null,"単位数をプルダウンして下記より選択してください。","⇐選択してください。"]
["CC：６つめ　　　　　　　　","CCをプルダウンして下記より選択してください。",null,null,null,null,null,null,"単位数をプルダウンして下記より選択してください。","⇐選択してください。"]
["CC：７つめ　　　　　　　　","CCをプルダウンして下記より選択してください。",null,null,null,null,null,null,"単位数をプルダウンして下記より選択してください。","⇐選択してください。"]
["CC：８つめ　　　　　　　　","CCをプルダウンして下記より選択してください。",null,null,null,null,null,null,"単位数をプルダウンして下記より選択してください。","⇐選択してください。"]
["CC：９つめ　　　　　　　　","CCをプルダウンして下記より選択してください。",null,null,null,null,null,null,"単位数をプルダウンして下記より選択してください。","⇐選択してください。"]
["CC：１０つめ　　　　　　　　","CCをプルダウンして下記より選択してください。",null,null,null,null,null,null,"単位数をプルダウンして下記より選択してください。","⇐選択してください。"]
[]
["演題名（テーマ）*",null,null,null,null,null,null,null,null,"⇐入力してください。"]
[null,"例:感染症に対する対策について（未定の場合は仮題をご記入ください。「未定」では受付いたしません。）"]
["演題に関する補足説明",null,null,null,null,null,null,null,null,"⇐必要があれば入力してください。"]
[]
["講師所属(肩書き)*",null,null,null,null,null,null,null,null,"⇐入力してください。"]
[null,"例:医師会大学病院長、整形外科教授"]
["講師名*",null,null,null,null,null,null,null,null,"⇐入力してください。"]
[null,"例:生涯太郎　（※先生の入力は不要、姓と名の間は空白を入れず詰めて入力してください。）"]
["演題④"]
[null,null,null,{"$f":"B192&C192&D192","v":"hh：mm"},null,null,null,{"$f":"F192&G192&H192","v":"hh：mm"}]
["会場名*",null,null,null,null,null,null,null,null,"⇐入力してください。"]
[null,"例：〇〇会館"]
["階・室名*",null,null,null,null,null,null,null,null,"⇐入力してください。"]
[null,"例：4階101号室"]
["演題開催時間*","hh","：","mm","～","hh","：","mm",{"$f":"IF(ISERROR(H187-D187), \"\", ROUNDUP(H187-D187,5))","v":""},"⇐選択してください。"]
[null,"例:19　 　:　　00　　　　　～　　　　21 　　:　　00"]
["演題学習時間*",{"$f":"IF(I192=\"\",\"\",IF(I192<30/1440,0,IF(I192<60/1440,カリキュラムコード一覧!$C$2,IF(申込書!I192<90/1440,カリキュラムコード一覧!$C$3,IF(申込書!I192<120/1440,カリキュラムコード一覧!$C$4,IF(I192<150/1440,カリキュラムコード一覧!$C$5,IF(I192<180/1440,カリキュラムコード一覧!$C$6,IF(I192<210/1440,カリキュラムコード一覧!$C$7,IF(I192<240/1440,カリキュラムコード一覧!$C$8,IF(I192<270/1440,カリキュラムコード一覧!$C$9,IF(I192<300/1440,カリキュラムコード一覧!$C$10,カリキュラムコード一覧!$C$11)))))))))))","v":""},null,null,null,null,null,null,null,"⇐※入力しないでください。"]
[]
["CC（単位）*",1,null,null,null,null,null,null,null,"⇐選択してください。"]
["  ","基本的には、１時間１単位１カリキュラムコードです。\n（ただし、講習会等の構成の自由度を保つために、最小単位は30分0.5単位、１カリキュラムコードといたします。）"]
[null,"※上記に記された単位数とＣＣ数を超えて申請することはできません。"]
["CC（単位）*","CC",null,null,null,null,null,null,"単位数"]
["CC：１つめ　　　　　　　　","CCをプルダウンして下記より選択してください。",null,null,null,null,null,null,"単位数をプルダウンして下記より選択してください。","⇐選択してください。"]
["CC：２つめ　　　　　　　　","CCをプルダウンして下記より選択してください。",null,null,null,null,null,null,"単位数をプルダウンして下記より選択してください。","⇐選択してください。"]
["CC：３つめ　　　　　　　　","CCをプルダウンして下記より選択してください。",null,null,null,null,null,null,"単位数をプルダウンして下記より選択してください。","⇐選択してください。"]
["CC：４つめ　　　　　　　　","CCをプルダウンして下記より選択してください。",null,null,null,null,null,null,"単位数をプルダウンして下記より選択してください。","⇐選択してください。"]
["CC：５つめ　　　　　　　　","CCをプルダウンして下記より選択してください。",null,null,null,null,null,null,"単位数をプルダウンして下記より選択してください。","⇐選択してください。"]
["CC：６つめ　　　　　　　　","CCをプルダウンして下記より選択してください。",null,null,null,null,null,null,"単位数をプルダウンして下記より選択してください。","⇐選択してください。"]
["CC：７つめ　　　　　　　　","CCをプルダウンして下記より選択してください。",null,null,null,null,null,null,"単位数をプルダウンして下記より選択してください。","⇐選択してください。"]
["CC：８つめ　　　　　　　　","CCをプルダウンして下記より選択してください。",null,null,null,null,null,null,"単位数をプルダウンして下記より選択してください。","⇐選択してください。"]
["CC：９つめ　　　　　　　　","CCをプルダウンして下記より選択してください。",null,null,null,null,null,null,"単位数をプルダウンして下記より選択してください。","⇐選択してください。"]
["CC：１０つめ　　　　　　　　","CCをプルダウンして下記より選択してください。",null,null,null,null,null,null,"単位数をプルダウンして下記より選択してください。","⇐選択してください。"]
[]
["演題名（テーマ）*",null,null,null,null,null,null,null,null,"⇐入力してください。"]
[null,"例:感染症に対する対策について（未定の場合は仮題をご記入ください。「未定」では受付いたしません。）"]
["演題に関する補足説明",null,null,null,null,null,null,null,null,"⇐必要があれば入力してください。"]
[]
["講師所属(肩書き)*",null,null,null,null,null,null,null,null,"⇐入力してください。"]
[null,"例:医師会大学病院長、整形外科教授"]
["講師名*",null,null,null,null,null,null,null,null,"⇐入力してください。"]
[null,"例:生涯太郎　（※先生の入力は不要、姓と名の間は空白を入れず詰めて入力してください。）"]
["演題⑤"]
[null,null,null,{"$f":"B225&C225&D225","v":"hh：mm"},null,null,null,{"$f":"F225&G225&H225","v":"hh：mm"}]
["会場名*",null,null,null,null,null,null,null,null,"⇐入力してください。"]
[null,"例：〇〇会館"]
["階・室名*",null,null,null,null,null,null,null,null,"⇐入力してください。"]
[null,"例：4階101号室"]
["演題開催時間*","hh","：","mm","～","hh","：","mm",{"$f":"IF(ISERROR(H220-D220), \"\", ROUNDUP(H220-D220,5))","v":""},"⇐選択してください。"]
[null,"例:19　 　:　　00　　　　　～　　　　21 　　:　　00"]
["演題学習時間*",{"$f":"IF(I225=\"\",\"\",IF(I225<30/1440,0,IF(I225<60/1440,カリキュラムコード一覧!$C$2,IF(申込書!I225<90/1440,カリキュラムコード一覧!$C$3,IF(申込書!I225<120/1440,カリキュラムコード一覧!$C$4,IF(I225<150/1440,カリキュラムコード一覧!$C$5,IF(I225<180/1440,カリキュラムコード一覧!$C$6,IF(I225<210/1440,カリキュラムコード一覧!$C$7,IF(I225<240/1440,カリキュラムコード一覧!$C$8,IF(I225<270/1440,カリキュラムコード一覧!$C$9,IF(I225<300/1440,カリキュラムコード一覧!$C$10,カリキュラムコード一覧!$C$11)))))))))))","v":""},null,null,null,null,null,null,null,"⇐※入力しないでください。"]
[]
["CC（単位）*","単位数をプルダウンして下記より選択してください。",null,null,null,null,null,null,null,"⇐選択してください。"]
["  ","基本的には、１時間１単位１カリキュラムコードです。\n（ただし、講習会等の構成の自由度を保つために、最小単位は30分0.5単位、１カリキュラムコードといたします。）"]
[null,"※上記に記された単位数とＣＣ数を超えて申請することはできません。"]
["CC（単位）*","CC",null,null,null,null,null,null,"単位数"]
["CC：１つめ　　　　　　　　","CCをプルダウンして下記より選択してください。",null,null,null,null,null,null,"単位数をプルダウンして下記より選択してください。","⇐選択してください。"]
["CC：２つめ　　　　　　　　","CCをプルダウンして下記より選択してください。",null,null,null,null,null,null,"単位数をプルダウンして下記より選択してください。","⇐選択してください。"]
["CC：３つめ　　　　　　　　","CCをプルダウンして下記より選択してください。",null,null,null,null,null,null,"単位数をプルダウンして下記より選択してください。","⇐選択してください。"]
["CC：４つめ　　　　　　　　","CCをプルダウンして下記より選択してください。",null,null,null,null,null,null,"単位数をプルダウンして下記より選択してください。","⇐選択してください。"]
["CC：５つめ　　　　　　　　","CCをプルダウンして下記より選択してください。",null,null,null,null,null,null,"単位数をプルダウンして下記より選択してください。","⇐選択してください。"]
["CC：６つめ　　　　　　　　","CCをプルダウンして下記より選択してください。",null,null,null,null,null,null,"単位数をプルダウンして下記より選択してください。","⇐選択してください。"]
["CC：７つめ　　　　　　　　","CCをプルダウンして下記より選択してください。",null,null,null,null,null,null,"単位数をプルダウンして下記より選択してください。","⇐選択してください。"]
["CC：８つめ　　　　　　　　","CCをプルダウンして下記より選択してください。",null,null,null,null,null,null,"単位数をプルダウンして下記より選択してください。","⇐選択してください。"]
["CC：９つめ　　　　　　　　","CCをプルダウンして下記より選択してください。",null,null,null,null,null,null,"単位数をプルダウンして下記より選択してください。","⇐選択してください。"]
["CC：１０つめ　　　　　　　　","CCをプルダウンして下記より選択してください。",null,null,null,null,null,null,"単位数をプルダウンして下記より選択してください。","⇐選択してください。"]
[]
["演題名（テーマ）*",null,null,null,null,null,null,null,null,"⇐入力してください。"]
[null,"例:感染症に対する対策について（未定の場合は仮題をご記入ください。「未定」では受付いたしません。）"]
["演題に関する補足説明",null,null,null,null,null,null,null,null,"⇐必要があれば入力してください。"]
[]
["講師所属(肩書き)*",null,null,null,null,null,null,null,null,"⇐入力してください。"]
[null,"例:医師会大学病院長、整形外科教授"]
["講師名*",null,null,null,null,null,null,null,null,"⇐入力してください。"]
[null,"例:生涯太郎　（※先生の入力は不要、姓と名の間は空白を入れず詰めて入力してください。）"]
["演題⑥"]
[null,null,null,{"$f":"B258&C258&D258","v":"hh：mm"},null,null,null,{"$f":"F258&G258&H258","v":"hh：mm"}]
["会場名*",null,null,null,null,null,null,null,null,"⇐入力してください。"]
[null,"例：〇〇会館"]
["階・室名*",null,null,null,null,null,null,null,null,"⇐入力してください。"]
[null,"例：4階101号室"]
["演題開催時間*","hh","：","mm","～","hh","：","mm",{"$f":"IF(ISERROR(H253-D253), \"\", ROUNDUP(H253-D253,5))","v":""},"⇐選択してください。"]
[null,"例:19　 　:　　00　　　　　～　　　　21 　　:　　00"]
["演題学習時間*",{"$f":"IF(I258=\"\",\"\",IF(I258<30/1440,0,IF(I258<60/1440,カリキュラムコード一覧!$C$2,IF(申込書!I258<90/1440,カリキュラムコード一覧!$C$3,IF(申込書!I258<120/1440,カリキュラムコード一覧!$C$4,IF(I258<150/1440,カリキュラムコード一覧!$C$5,IF(I258<180/1440,カリキュラムコード一覧!$C$6,IF(I258<210/1440,カリキュラムコード一覧!$C$7,IF(I258<240/1440,カリキュラムコード一覧!$C$8,IF(I258<270/1440,カリキュラムコード一覧!$C$9,IF(I258<300/1440,カリキュラムコード一覧!$C$10,カリキュラムコード一覧!$C$11)))))))))))","v":""},null,null,null,null,null,null,null,"⇐※入力しないでください。"]
[]
["CC（単位）*","単位数をプルダウンして下記より選択してください。",null,null,null,null,null,null,null,"⇐選択してください。"]
["  ","基本的には、１時間１単位１カリキュラムコードです。\n（ただし、講習会等の構成の自由度を保つために、最小単位は30分0.5単位、１カリキュラムコードといたします。）"]
[null,"※上記に記された単位数とＣＣ数を超えて申請することはできません。"]
["CC（単位）*","CC",null,null,null,null,null,null,"単位数"]
["CC：１つめ　　　　　　　　","CCをプルダウンして下記より選択してください。",null,null,null,null,null,null,"単位数をプルダウンして下記より選択してください。","⇐選択してください。"]
["CC：２つめ　　　　　　　　","CCをプルダウンして下記より選択してください。",null,null,null,null,null,null,"単位数をプルダウンして下記より選択してください。","⇐選択してください。"]
["CC：３つめ　　　　　　　　","CCをプルダウンして下記より選択してください。",null,null,null,null,null,null,"単位数をプルダウンして下記より選択してください。","⇐選択してください。"]
["CC：４つめ　　　　　　　　","CCをプルダウンして下記より選択してください。",null,null,null,null,null,null,"単位数をプルダウンして下記より選択してください。","⇐選択してください。"]
["CC：５つめ　　　　　　　　","CCをプルダウンして下記より選択してください。",null,null,null,null,null,null,"単位数をプルダウンして下記より選択してください。","⇐選択してください。"]
["CC：６つめ　　　　　　　　","CCをプルダウンして下記より選択してください。",null,null,null,null,null,null,"単位数をプルダウンして下記より選択してください。","⇐選択してください。"]
["CC：７つめ　　　　　　　　","CCをプルダウンして下記より選択してください。",null,null,null,null,null,null,"単位数をプルダウンして下記より選択してください。","⇐選択してください。"]
["CC：８つめ　　　　　　　　","CCをプルダウンして下記より選択してください。",null,null,null,null,null,null,"単位数をプルダウンして下記より選択してください。","⇐選択してください。"]
["CC：９つめ　　　　　　　　","CCをプルダウンして下記より選択してください。",null,null,null,null,null,null,"単位数をプルダウンして下記より選択してください。","⇐選択してください。"]
["CC：１０つめ　　　　　　　　","CCをプルダウンして下記より選択してください。",null,null,null,null,null,null,"単位数をプルダウンして下記より選択してください。","⇐選択してください。"]
[]
["演題名（テーマ）*",null,null,null,null,null,null,null,null,"⇐入力してください。"]
[null,"例:感染症に対する対策について（未定の場合は仮題をご記入ください。「未定」では受付いたしません。）"]
["演題に関する補足説明",null,null,null,null,null,null,null,null,"⇐必要があれば入力してください。"]
[]
["講師所属(肩書き)*",null,null,null,null,null,null,null,null,"⇐入力してください。"]
[null,"例:医師会大学病院長、整形外科教授"]
["講師名*",null,null,null,null,null,null,null,null,"⇐入力してください。"]
[null,"例:生涯太郎　（※先生の入力は不要、姓と名の間は空白を入れず詰めて入力してください。）"]
["演題⑦"]
[null,null,null,{"$f":"B291&C291&D291","v":"hh：mm"},null,null,null,{"$f":"F291&G291&H291","v":"hh：mm"}]
["会場名*",null,null,null,null,null,null,null,null,"⇐入力してください。"]
[null,"例：〇〇会館"]
["階・室名*",null,null,null,null,null,null,null,null,"⇐入力してください。"]
[null,"例：4階101号室"]
["演題開催時間*","hh","：","mm","～","hh","：","mm",{"$f":"IF(ISERROR(H286-D286), \"\", ROUNDUP(H286-D286,5))","v":""},"⇐選択してください。"]
[null,"例:19　 　:　　00　　　　　～　　　　21 　　:　　00"]
["演題学習時間*",{"$f":"IF(I291=\"\",\"\",IF(I291<30/1440,0,IF(I291<60/1440,カリキュラムコード一覧!$C$2,IF(申込書!I291<90/1440,カリキュラムコード一覧!$C$3,IF(申込書!I291<120/1440,カリキュラムコード一覧!$C$4,IF(I291<150/1440,カリキュラムコード一覧!$C$5,IF(I291<180/1440,カリキュラムコード一覧!$C$6,IF(I291<210/1440,カリキュラムコード一覧!$C$7,IF(I291<240/1440,カリキュラムコード一覧!$C$8,IF(I291<270/1440,カリキュラムコード一覧!$C$9,IF(I291<300/1440,カリキュラムコード一覧!$C$10,カリキュラムコード一覧!$C$11)))))))))))","v":""},null,null,null,null,null,null,null,"⇐※入力しないでください。"]
[]
["CC（単位）*","単位数をプルダウンして下記より選択してください。",null,null,null,null,null,null,null,"⇐選択してください。"]
["  ","基本的には、１時間１単位１カリキュラムコードです。\n（ただし、講習会等の構成の自由度を保つために、最小単位は30分0.5単位、１カリキュラムコードといたします。）"]
[null,"※上記に記された単位数とＣＣ数を超えて申請することはできません。"]
["CC（単位）*","CC",null,null,null,null,null,null,"単位数"]
["CC：１つめ　　　　　　　　","CCをプルダウンして下記より選択してください。",null,null,null,null,null,null,"単位数をプルダウンして下記より選択してください。","⇐選択してください。"]
["CC：２つめ　　　　　　　　","CCをプルダウンして下記より選択してください。",null,null,null,null,null,null,"単位数をプルダウンして下記より選択してください。","⇐選択してください。"]
["CC：３つめ　　　　　　　　","CCをプルダウンして下記より選択してください。",null,null,null,null,null,null,"単位数をプルダウンして下記より選択してください。","⇐選択してください。"]
["CC：４つめ　　　　　　　　","CCをプルダウンして下記より選択してください。",null,null,null,null,null,null,"単位数をプルダウンして下記より選択してください。","⇐選択してください。"]
["CC：５つめ　　　　　　　　","CCをプルダウンして下記より選択してください。",null,null,null,null,null,null,"単位数をプルダウンして下記より選択してください。","⇐選択してください。"]
["CC：６つめ　　　　　　　　","CCをプルダウンして下記より選択してください。",null,null,null,null,null,null,"単位数をプルダウンして下記より選択してください。","⇐選択してください。"]
["CC：７つめ　　　　　　　　","CCをプルダウンして下記より選択してください。",null,null,null,null,null,null,"単位数をプルダウンして下記より選択してください。","⇐選択してください。"]
["CC：８つめ　　　　　　　　","CCをプルダウンして下記より選択してください。",null,null,null,null,null,null,"単位数をプルダウンして下記より選択してください。","⇐選択してください。"]
["CC：９つめ　　　　　　　　","CCをプルダウンして下記より選択してください。",null,null,null,null,null,null,"単位数をプルダウンして下記より選択してください。","⇐選択してください。"]
["CC：１０つめ　　　　　　　　","CCをプルダウンして下記より選択してください。",null,null,null,null,null,null,"単位数をプルダウンして下記より選択してください。","⇐選択してください。"]
[]
["演題名（テーマ）*",null,null,null,null,null,null,null,null,"⇐入力してください。"]
[null,"例:感染症に対する対策について（未定の場合は仮題をご記入ください。「未定」では受付いたしません。）"]
["演題に関する補足説明",null,null,null,null,null,null,null,null,"⇐必要があれば入力してください。"]
[]
["講師所属(肩書き)*",null,null,null,null,null,null,null,null,"⇐入力してください。"]
[null,"例:医師会大学病院長、整形外科教授"]
["講師名*",null,null,null,null,null,null,null,null,"⇐入力してください。"]
[null,"例:生涯太郎　（※先生の入力は不要、姓と名の間は空白を入れず詰めて入力してください。）"]
["演題⑧"]
[null,null,null,{"$f":"B324&C324&D324","v":"hh：mm"},null,null,null,{"$f":"F324&G324&H324","v":"hh：mm"}]
["会場名*",null,null,null,null,null,null,null,null,"⇐入力してください。"]
[null,"例：〇〇会館"]
["階・室名*",null,null,null,null,null,null,null,null,"⇐入力してください。"]
[null,"例：4階101号室"]
["演題開催時間*","hh","：","mm","～","hh","：","mm",{"$f":"IF(ISERROR(H319-D319), \"\", ROUNDUP(H319-D319,5))","v":""},"⇐選択してください。"]
[null,"例:19　 　:　　00　　　　　～　　　　21 　　:　　00"]
["演題学習時間*",{"$f":"IF(I324=\"\",\"\",IF(I324<30/1440,0,IF(I324<60/1440,カリキュラムコード一覧!$C$2,IF(申込書!I324<90/1440,カリキュラムコード一覧!$C$3,IF(申込書!I324<120/1440,カリキュラムコード一覧!$C$4,IF(I324<150/1440,カリキュラムコード一覧!$C$5,IF(I324<180/1440,カリキュラムコード一覧!$C$6,IF(I324<210/1440,カリキュラムコード一覧!$C$7,IF(I324<240/1440,カリキュラムコード一覧!$C$8,IF(I324<270/1440,カリキュラムコード一覧!$C$9,IF(I324<300/1440,カリキュラムコード一覧!$C$10,カリキュラムコード一覧!$C$11)))))))))))","v":""},null,null,null,null,null,null,null,"⇐※入力しないでください。"]
[]
["CC（単位）*","単位数をプルダウンして下記より選択してください。",null,null,null,null,null,null,null,"⇐選択してください。"]
["  ","基本的には、１時間１単位１カリキュラムコードです。\n（ただし、講習会等の構成の自由度を保つために、最小単位は30分0.5単位、１カリキュラムコードといたします。）"]
[null,"※上記に記された単位数とＣＣ数を超えて申請することはできません。"]
["CC（単位）*","CC",null,null,null,null,null,null,"単位数"]
["CC：１つめ　　　　　　　　","CCをプルダウンして下記より選択してください。",null,null,null,null,null,null,"単位数をプルダウンして下記より選択してください。","⇐選択してください。"]
["CC：２つめ　　　　　　　　","CCをプルダウンして下記より選択してください。",null,null,null,null,null,null,"単位数をプルダウンして下記より選択してください。","⇐選択してください。"]
["CC：３つめ　　　　　　　　","CCをプルダウンして下記より選択してください。",null,null,null,null,null,null,"単位数をプルダウンして下記より選択してください。","⇐選択してください。"]
["CC：４つめ　　　　　　　　","CCをプルダウンして下記より選択してください。",null,null,null,null,null,null,"単位数をプルダウンして下記より選択してください。","⇐選択してください。"]
["CC：５つめ　　　　　　　　","CCをプルダウンして下記より選択してください。",null,null,null,null,null,null,"単位数をプルダウンして下記より選択してください。","⇐選択してください。"]
["CC：６つめ　　　　　　　　","CCをプルダウンして下記より選択してください。",null,null,null,null,null,null,"単位数をプルダウンして下記より選択してください。","⇐選択してください。"]
["CC：７つめ　　　　　　　　","CCをプルダウンして下記より選択してください。",null,null,null,null,null,null,"単位数をプルダウンして下記より選択してください。","⇐選択してください。"]
["CC：８つめ　　　　　　　　","CCをプルダウンして下記より選択してください。",null,null,null,null,null,null,"単位数をプルダウンして下記より選択してください。","⇐選択してください。"]
["CC：９つめ　　　　　　　　","CCをプルダウンして下記より選択してください。",null,null,null,null,null,null,"単位数をプルダウンして下記より選択してください。","⇐選択してください。"]
["CC：１０つめ　　　　　　　　","CCをプルダウンして下記より選択してください。",null,null,null,null,null,null,"単位数をプルダウンして下記より選択してください。","⇐選択してください。"]
[]
["演題名（テーマ）*",null,null,null,null,null,null,null,null,"⇐入力してください。"]
[null,"例:感染症に対する対策について（未定の場合は仮題をご記入ください。「未定」では受付いたしません。）"]
["演題に関する補足説明",null,null,null,null,null,null,null,null,"⇐必要があれば入力してください。"]
[]
["講師所属(肩書き)*",null,null,null,null,null,null,null,null,"⇐入力してください。"]
[null,"例:医師会大学病院長、整形外科教授"]
["講師名*",null,null,null,null,null,null,null,null,"⇐入力してください。"]
[null,"例:生涯太郎　（※先生の入力は不要、姓と名の間は空白を入れず詰めて入力してください。）"]
["演題⑨"]
[null,null,null,{"$f":"B357&C357&D357","v":"hh：mm"},null,null,null,{"$f":"F357&G357&H357","v":"hh：mm"}]
["会場名*",null,null,null,null,null,null,null,null,"⇐入力してください。"]
[null,"例：〇〇会館"]
["階・室名*",null,null,null,null,null,null,null,null,"⇐入力してください。"]
[null,"例：4階101号室"]
["演題開催時間*","hh","：","mm","～","hh","：","mm",{"$f":"IF(ISERROR(H352-D352), \"\", ROUNDUP(H352-D352,5))","v":""},"⇐選択してください。"]
[null,"例:19　 　:　　00　　　　　～　　　　21 　　:　　00"]
["演題学習時間*",{"$f":"IF(I357=\"\",\"\",IF(I357<30/1440,0,IF(I357<60/1440,カリキュラムコード一覧!$C$2,IF(申込書!I357<90/1440,カリキュラムコード一覧!$C$3,IF(申込書!I357<120/1440,カリキュラムコード一覧!$C$4,IF(I357<150/1440,カリキュラムコード一覧!$C$5,IF(I357<180/1440,カリキュラムコード一覧!$C$6,IF(I357<210/1440,カリキュラムコード一覧!$C$7,IF(I357<240/1440,カリキュラムコード一覧!$C$8,IF(I357<270/1440,カリキュラムコード一覧!$C$9,IF(I357<300/1440,カリキュラムコード一覧!$C$10,カリキュラムコード一覧!$C$11)))))))))))","v":""},null,null,null,null,null,null,null,"⇐※入力しないでください。"]
[]
["CC（単位）*","単位数をプルダウンして下記より選択してください。",null,null,null,null,null,null,null,"⇐選択してください。"]
["  ","基本的には、１時間１単位１カリキュラムコードです。\n（ただし、講習会等の構成の自由度を保つために、最小単位は30分0.5単位、１カリキュラムコードといたします。）"]
[null,"※上記に記された単位数とＣＣ数を超えて申請することはできません。"]
["CC（単位）*","CC",null,null,null,null,null,null,"単位数"]
["CC：１つめ　　　　　　　　","CCをプルダウンして下記より選択してください。",null,null,null,null,null,null,"単位数をプルダウンして下記より選択してください。","⇐選択してください。"]
["CC：２つめ　　　　　　　　","CCをプルダウンして下記より選択してください。",null,null,null,null,null,null,"単位数をプルダウンして下記より選択してください。","⇐選択してください。"]
["CC：３つめ　　　　　　　　","CCをプルダウンして下記より選択してください。",null,null,null,null,null,null,"単位数をプルダウンして下記より選択してください。","⇐選択してください。"]
["CC：４つめ　　　　　　　　","CCをプルダウンして下記より選択してください。",null,null,null,null,null,null,"単位数をプルダウンして下記より選択してください。","⇐選択してください。"]
["CC：５つめ　　　　　　　　","CCをプルダウンして下記より選択してください。",null,null,null,null,null,null,"単位数をプルダウンして下記より選択してください。","⇐選択してください。"]
["CC：６つめ　　　　　　　　","CCをプルダウンして下記より選択してください。",null,null,null,null,null,null,"単位数をプルダウンして下記より選択してください。","⇐選択してください。"]
["CC：７つめ　　　　　　　　","CCをプルダウンして下記より選択してください。",null,null,null,null,null,null,"単位数をプルダウンして下記より選択してください。","⇐選択してください。"]
["CC：８つめ　　　　　　　　","CCをプルダウンして下記より選択してください。",null,null,null,null,null,null,"単位数をプルダウンして下記より選択してください。","⇐選択してください。"]
["CC：９つめ　　　　　　　　","CCをプルダウンして下記より選択してください。",null,null,null,null,null,null,"単位数をプルダウンして下記より選択してください。","⇐選択してください。"]
["CC：１０つめ　　　　　　　　","CCをプルダウンして下記より選択してください。",null,null,null,null,null,null,"単位数をプルダウンして下記より選択してください。","⇐選択してください。"]
[]
["演題名（テーマ）*",null,null,null,null,null,null,null,null,"⇐入力してください。"]
[null,"例:感染症に対する対策について（未定の場合は仮題をご記入ください。「未定」では受付いたしません。）"]
["演題に関する補足説明",null,null,null,null,null,null,null,null,"⇐必要があれば入力してください。"]
[]
["講師所属(肩書き)*",null,null,null,null,null,null,null,null,"⇐入力してください。"]
[null,"例:医師会大学病院長、整形外科教授"]
["講師名*",null,null,null,null,null,null,null,null,"⇐入力してください。"]
[null,"例:生涯太郎　（※先生の入力は不要、姓と名の間は空白を入れず詰めて入力してください。）"]
["演題⑩"]
[null,null,null,{"$f":"B390&C390&D390","v":"hh：mm"},null,null,null,{"$f":"F390&G390&H390","v":"hh：mm"}]
["会場名*",null,null,null,null,null,null,null,null,"⇐入力してください。"]
[null,"例：〇〇会館"]
["階・室名*",null,null,null,null,null,null,null,null,"⇐入力してください。"]
[null,"例：4階101号室"]
["演題開催時間*","hh","：","mm","～","hh","：","mm",{"$f":"IF(ISERROR(H385-D385), \"\", ROUNDUP(H385-D385,5))","v":""},"⇐選択してください。"]
[null,"例:19　 　:　　00　　　　　～　　　　21 　　:　　00"]
["演題学習時間*",{"$f":"IF(I390=\"\",\"\",IF(I390<30/1440,0,IF(I390<60/1440,カリキュラムコード一覧!$C$2,IF(申込書!I390<90/1440,カリキュラムコード一覧!$C$3,IF(申込書!I390<120/1440,カリキュラムコード一覧!$C$4,IF(I390<150/1440,カリキュラムコード一覧!$C$5,IF(I390<180/1440,カリキュラムコード一覧!$C$6,IF(I390<210/1440,カリキュラムコード一覧!$C$7,IF(I390<240/1440,カリキュラムコード一覧!$C$8,IF(I390<270/1440,カリキュラムコード一覧!$C$9,IF(I390<300/1440,カリキュラムコード一覧!$C$10,カリキュラムコード一覧!$C$11)))))))))))","v":""},null,null,null,null,null,null,null,"⇐※入力しないでください。"]
[]
["CC（単位）*","単位数をプルダウンして下記より選択してください。",null,null,null,null,null,null,null,"⇐選択してください。"]
["  ","基本的には、１時間１単位１カリキュラムコードです。\n（ただし、講習会等の構成の自由度を保つために、最小単位は30分0.5単位、１カリキュラムコードといたします。）"]
[null,"※上記に記された単位数とＣＣ数を超えて申請することはできません。"]
["CC（単位）*","CC",null,null,null,null,null,null,"単位数"]
["CC：１つめ　　　　　　　　","CCをプルダウンして下記より選択してください。",null,null,null,null,null,null,"単位数をプルダウンして下記より選択してください。","⇐選択してください。"]
["CC：２つめ　　　　　　　　","CCをプルダウンして下記より選択してください。",null,null,null,null,null,null,"単位数をプルダウンして下記より選択してください。","⇐選択してください。"]
["CC：３つめ　　　　　　　　","CCをプルダウンして下記より選択してください。",null,null,null,null,null,null,"単位数をプルダウンして下記より選択してください。","⇐選択してください。"]
["CC：４つめ　　　　　　　　","CCをプルダウンして下記より選択してください。",null,null,null,null,null,null,"単位数をプルダウンして下記より選択してください。","⇐選択してください。"]
["CC：５つめ　　　　　　　　","CCをプルダウンして下記より選択してください。",null,null,null,null,null,null,"単位数をプルダウンして下記より選択してください。","⇐選択してください。"]
["CC：６つめ　　　　　　　　","CCをプルダウンして下記より選択してください。",null,null,null,null,null,null,"単位数をプルダウンして下記より選択してください。","⇐選択してください。"]
["CC：７つめ　　　　　　　　","CCをプルダウンして下記より選択してください。",null,null,null,null,null,null,"単位数をプルダウンして下記より選択してください。","⇐選択してください。"]
["CC：８つめ　　　　　　　　","CCをプルダウンして下記より選択してください。",null,null,null,null,null,null,"単位数をプルダウンして下記より選択してください。","⇐選択してください。"]
["CC：９つめ　　　　　　　　","CCをプルダウンして下記より選択してください。",null,null,null,null,null,null,"単位数をプルダウンして下記より選択してください。","⇐選択してください。"]
["CC：１０つめ　　　　　　　　","CCをプルダウンして下記より選択してください。",null,null,null,null,null,null,"単位数をプルダウンして下記より選択してください。","⇐選択してください。"]
[]
["演題名（テーマ）*",null,null,null,null,null,null,null,null,"⇐入力してください。"]
[null,"例:感染症に対する対策について（未定の場合は仮題をご記入ください。「未定」では受付いたしません。）"]
["演題に関する補足説明",null,null,null,null,null,null,null,null,"⇐必要があれば入力してください。"]
[]
["講師所属(肩書き)*",null,null,null,null,null,null,null,null,"⇐入力してください。"]
[null,"例:医師会大学病院長、整形外科教授"]
["講師名*",null,null,null,null,null,null,null,null,"⇐入力してください。"]
[null,"例:生涯太郎　（※先生の入力は不要、姓と名の間は空白を入れず詰めて入力してください。）"]
[" "]

{"sheet":"カリキュラムコード一覧","index":1,"n_rows":85,"n_cols":21,"rows_kept":85,"cut":false,"hidden":true,"merged":[]}
[null,"CCをプルダウンして下記より選択してください。","単位数をプルダウンして下記より選択してください。","主催者分類をプルダウンして下記より選択してください。","共催者の有無をプルダウンして下記より選択してください。","製薬会社共催の有無をプルダウンして下記より選択してください。","講習会等の形式別をプルダウンして下記より選択してください。","対象者をプルダウンして下記より選択してください。","日付を日付入力ボタンをクリックしカレンダーより選択してください。","時間を選択してください","何分を選択してください","開催日数をプルダウンして下記より選択してください。","参加費・受講料をプルダウンして下記より選択してください。","事前申込要・不要をプルダウンして下記より選択してください。","申請者の立場をプルダウンして下記より選択してください。","COI開示有無をプルダウンして下記より選択してください。","受付管理をプルダウンして下記より選択してください。","申請演題数をプルダウンして下記より選択してください。","学習時間をプルダウンして下記より選択してください。","単位数をプルダウンして下記より選択してください。","主催者分類をプルダウンして下記より選択してください。"]
[null,"1:医師のプロフェッショナリズム","0.5単位（CCを最大1つまで選べます）","企業（　　※↓下記の欄に入力してください　　）","無","無 ","座学 "," 医師のみ     ",null,"hh","mm","1日 ","無料    ","不要   ","主催者  ","有","開始受付のみ   ",1,"30分（０．５単位、ＣＣを最大１つまで選べます）",0.5,"企業"]
[null,"2:医療倫理：臨床倫理","1単位　（CCを最大2つまで選べます）","医療機関（　　※↓下記の欄に入力してください　　）","有　水戸市医師会","有　　企業名（　　※↓下記の欄に入力してください　　　） ","その他  （　　※↓下記の欄に入力してください　　）","その他（　　※↓下記の欄に入力してください　　　）",null,"08","00","複数日","有料（　　※↓下記の欄に参加費・受講料を入力してください　　　） ","必要  申込締切日（　　※↓下記の欄に締切日を入力してください　　　） ","共催者","無","終了受付のみ",2,"60分（１単位、ＣＣを最大２つまで選べます）",1,"医療機関"]
[null,"3:医療倫理：研究倫理と生命倫理 ","1.5単位（CCを最大3つまで選べます）","団体 （　　※↓下記の欄に入力してください　　）","有　日立市医師会",null,null,null,null,"09","05",null,null,null,"その他  （　　※↓下記の欄に入力してください　　）",null,"開始＋終了受付  （　　※↓下記の欄に入力してください　　分間）",3,"90分（１．５単位、ＣＣを最大３つまで選べます）",1.5,"団体 "]
[null,"4:医師ー患者関係とコミュニケーション  ","2単位　（CCを最大4つまで選べます）","水戸市医師会","有　土浦市医師会",null,null,null,null,10,10,null,null,null,null,null,null,4,"120分（２．０単位、ＣＣを最大４つまで選べます）",2,"水戸市医師会"]
[null,"5:心理社会的アプローチ  ","2.5単位（CCを最大5つまで選べます）","日立市医師会","有　古河市医師会",null,null,null,null,11,15,null,null,null,null,null,null,5,"150分（２．５単位、ＣＣを最大５つまで選べます）",2.5,"日立市医師会"]
[null,"6:医療制度と法律  ","3単位　（CCを最大6つまで選べます）","土浦市医師会","有　石岡市医師会",null,null,null,null,12,20,null,null,null,null,null,null,6,"180分（３．０単位、ＣＣを最大６つまで選べます）",3,"土浦市医師会"]
[null,"7:医療の質と安全  ","3.5単位（CCを最大7つまで選べます）","古河市医師会","有　結城市医師会",null,null,null,null,13,25,null,null,null,null,null,null,7,"210分（３．５単位、ＣＣを最大７つまで選べます）",3.5,"古河市医師会"]
[null,"8:感染対策  ","4単位　（CCを最大8つまで選べます）","石岡市医師会","有　常陸太田市医師会",null,null,null,null,14,30,null,null,null,null,null,null,8,"240分以内（４．０単位、ＣＣを最大８つまで選べます）",4,"石岡市医師会"]
[null,"9:医療情報 ","4.5単位（CCを最大9つまで選べます）","結城市医師会","有　取手市医師会",null,null,null,null,15,35,null,null,null,null,null,null,9,"270分（４．５単位、ＣＣを最大９つまで選べます）",4.5,"結城市医師会"]
[null,"10:チーム医療  ","5単位　（CCを最大10つまで選べます）","常陸太田市医師会","有　ひたちなか市医師会",null,null,null,null,16,40,null,null,null,null,null,null,10,"300分（５．０単位、ＣＣを最大１０つまで選べます）",5,"常陸太田市医師会"]
[null,"11:予防と保健",null,"取手市医師会","有　茨城県県央医師会",null,null,null,null,17,45,null,null,null,null,null,null,11,null,null,"取手市医師会"]
[null,"12:地域医療  ",null,"ひたちなか市医師会","有　笠間市医師会",null,null,null,null,18,50,null,null,null,null,null,null,12,null,null,"ひたちなか市医師会"]
[null,"13:医療と介護および福祉の連携  ",null,"茨城県県央医師会","有　那珂医師会",null,null,null,null,19,55,null,null,null,null,null,null,13,null,null,"茨城県県央医師会"]
[null,"14:災害医療  ",null,"笠間市医師会","有　茨城県水郡医師会",null,null,null,null,20,null,null,null,null,null,null,null,14,null,null,"笠間市医師会"]
[null,"15:臨床問題解決のプロセス  ",null,"那珂医師会","有　多賀医師会",null,null,null,null,21,null,null,null,null,null,null,null,15,null,null,"那珂医師会"]
[null,"16:ショック  ",null,"茨城県水郡医師会","有　鹿島医師会",null,null,null,null,22,null,null,null,null,null,null,null,16,null,null,"茨城県水郡医師会"]
[null,"17:急性中毒  ",null,"多賀医師会","有　水郷医師会",null,null,null,null,null,null,null,null,null,null,null,null,17,null,null,"多賀医師会"]
[null,"18:全身倦怠感  ",null,"鹿島医師会","有　稲敷医師会",null,null,null,null,null,null,null,null,null,null,null,null,18,null,null,"鹿島医師会"]
[null,"19:身体機能の低下  ",null,"水郷医師会","有　つくば市医師会",null,null,null,null,null,null,null,null,null,null,null,null,19,null,null,"水郷医師会"]
[null,"20:不眠  ",null,"稲敷医師会","有　真壁医師会",null,null,null,null,null,null,null,null,null,null,null,null,20,null,null,"稲敷医師会"]
[null,"21:食欲不振  ",null,"つくば市医師会","有　茨城県きぬ医師会",null,null,null,null,null,null,null,null,null,null,null,null,21,null,null,"つくば市医師会"]
[null,"22:体重減少・るい痩  ",null,"真壁医師会","有　猿島郡医師会",null,null,null,null,null,null,null,null,null,null,null,null,22,null,null,"真壁医師会"]
[null,"23:体重増加・肥満  ",null,"茨城県きぬ医師会","有　県庁医師会",null,null,null,null,null,null,null,null,null,null,null,null,23,null,null,"茨城県きぬ医師会"]
[null,"24:浮腫  ",null,"猿島郡医師会","有　筑波大学医師会",null,null,null,null,null,null,null,null,null,null,null,null,24,null,null,"猿島郡医師会"]
[null,"25:リンパ節腫脹  ",null,"県庁医師会","有　東京医科大学茨城医療センター医師会 ",null,null,null,null,null,null,null,null,null,null,null,null,25,null,null,"県庁医師会"]
[null,"26:発疹  ",null,"筑波大学医師会","有　龍ケ崎市医師会",null,null,null,null,null,null,null,null,null,null,null,null,26,null,null,"筑波大学医師会"]
[null,"27:黄疸",null,"東京医科大学茨城医療センター医師会 ","有　牛久市医師会",null,null,null,null,null,null,null,null,null,null,null,null,27,null,null,"東京医科大学茨城医療センター医師会 "]
[null,"28:発熱  ",null,"龍ケ崎市医師会","有・その他（　　※↓下記の欄に入力してください　　）",null,null,null,null,null,null,null,null,null,null,null,null,28,null,null,"龍ケ崎市医師会"]
[null,"29:認知能の障害  ",null,"牛久市医師会",null,null,null,null,null,null,null,null,null,null,null,null,null,29,null,null,"牛久市医師会"]
[null,"30:頭痛  ",null,"茨城県医師会",null,null,null,null,null,null,null,null,null,null,null,null,null,30,null,null,"茨城県医師会"]
[null,"31:めまい  "]
[null,"32:意識障害  "]
[null,"33:失神  "]
[null,"34:言語障害  "]
[null,"35:けいれん発作  "]
[null,"36:視力障害、視野狭窄  "]
[null,"37:目の充血  "]
[null,"38:聴覚障害  "]
[null,"39:鼻漏・鼻閉  "]
[null,"40:鼻出血  "]
[null,"41:嗄声  "]
[null,"42:胸痛  "]
[null,"43:動悸  "]
[null,"44:心肺停止  "]
[null,"45:呼吸困難  "]
[null,"46:咳 ・痰  "]
[null,"47:誤嚥  "]
[null,"48:誤飲  "]
[null,"49:嚥下困難  "]
[null,"50:吐血・下血  "]
[null,"51:嘔気・嘔吐  "]
[null,"52:胸やけ  "]
[null,"53:腹痛  "]
[null,"54:便通異常（下痢、便秘）  "]
[null,"55:肛門・会陰部痛 "]
[null,"56:熱傷  "]
[null,"57:外傷  "]
[null,"58:褥瘡  "]
[null,"59:背部痛  "]
[null,"60:腰痛  "]
[null,"61:関節痛  "]
[null,"62:歩行障害  "]
[null,"63:四肢のしびれ  "]
[null,"64:肉眼的血尿  "]
[null,"65:排尿障害（尿失禁・排尿困難）  "]
[null,"66:乏尿・尿閉  "]
[null,"67:多尿  "]
[null,"68:精神科領域の救急  "]
[null,"69:不安  "]
[null,"70:気分の障害（うつ）  "]
[null,"71:流・早産および満期産  "]
[null,"72:成長・発達の障害  "]
[null,"73:慢性疾患・複合疾患の管理  "]
[null,"74:高血圧症  "]
[null,"75:脂質異常症  "]
[null,"76:糖尿病  "]
[null,"77:骨粗鬆症  "]
[null,"78:脳血管障害後遺症  "]
[null,"79:気管支喘息  "]
[null,"80:在宅医療  "]
[null,"81:終末期のケア  "]
[null,"82:生活習慣  "]
[null,"83:相補・代替医療（漢方医療を含む）  "]
[null,"0:その他"]

{"sheet":"Sheet3","index":2,"n_rows":0,"n_cols":0,"rows_kept":0,"cut":false,"hidden":true,"merged":[]}